[Event "TUR-ch U13-18 Open 2023"]
[Site "Antalya"]
[Date "2023.01.28"]
[Round "10"]
[White "Ozkeskin, Nazim Efe"]
[Black "Taspinar, Yanki"]
[Result "0-1"]
[ECO "B22"]
[WhiteElo "1742"]
[BlackElo "2275"]
[Annotator "TA"]
[PlyCount "147"]
[EventDate "2023.01.17"]
[EventType "swiss"]
[EventCountry "TUR"]
[SourceTitle "playchess.com"]
[Source "ChessBase"]
[SourceQuality "1"]
[TimeControl "5400+30"]

{[%evp 16,147,0,0,50,33,73,81,70,88,95,74,48,-11,-5,-12,-6,-19,0,-1,-1,-31,-31,-39,-29,-35,-8,-63,-75,-65,-68,-62,-68,-94,-99,-94,-94,-202,-50,-50,-52,-52,-50,-50,-50,-50,-49,-53,-48,-41,-7,-47,-22,-84,-83,-58,-66,-59,-59,-90,-44,-127,-127,-125,-109,-117,-117,-122,-103,-157,-158,-150,-146,-221,-195,-536,-469,-533,-126,-141,-102,-108,-108,-185,-135,-165,-81,-67,-41,-48,-8,-22,-22,-56,-57,-88,-88,-129,-8,-213,0,-107,-8,-8,-8,-96,0,0,0,-90,0,-11,-18,-77,-77,-77,-77,-77,-77,-1066,-902,-895,-551,-29966,-29967,-6918,-5941,-5851,-507,-5435,-5431,-4947,-1023,-594]} 1. e4 {[%cal Be2e4,Be4e5][%mdl 32]} c5 2. c3 {[%cal Bc2c3,Bc3d4,Bd4d5][%mdl 32]} Nf6 3. e5 Nd5 4. Nf3 Nc6 5. d4 cxd4 6. cxd4 d6 7. Bc4 dxe5 8. Bxd5 Qxd5 9. Nc3 Qa5 {B22: Sicilian: 2 c3.} (9... Qd6 $1 $11 10. d5 Nb4) 10. d5 $1 $14 {[%mdl 1024] White has compensation.} e4 11. Ng5 Nb4 {White is better.} 12. O-O $1 Bf5 13. a3 {d6 is the strong threat.} (13. Qh5 $6 Bg6 14. Qe2 Nxd5 $11) 13... Rd8 {[%cal Rb4d5] [#]} 14. Qb3 $146 (14. Qh5 g6 15. Qh4 Nxd5 16. Ngxe4 h6 17. Nxd5 Qxd5 $17) (14. d6 $1 $14 e6 15. Ngxe4 (15. axb4 Qxa1 16. Ngxe4 Qa6 $11) (15. Ncxe4 Nc6 $15)) ({Predecessor:} 14. axb4 Qxa1 15. Nb5 Rc8 16. d6 exd6 17. Qd5 Rxc1 18. h3 Rxf1+ 19. Kh2 Bg6 20. Qxb7 {1-0 Boruchovsky,A (2548)-Ahn,H (2282) Titled Tuesday intern op 13th Sep Late blitz 2022 (3)}) 14... Nxd5 $11 15. Rd1 {[%cal Rc3d5]} (15. Qxb7 Nxc3 16. bxc3 Qb6 17. Qxb6 (17. Rb1 Qxb7 18. Rxb7 f6 $17) 17... axb6 $17) 15... e6 {[%cal Be7e6,Be6d5,Bd5d4][%mdl 32]} (15... h6 $2 16. Nxd5 Rxd5 17. Qxd5 $18) 16. Qxb7 {[%csl Gg5][%cal Rb7f7]} Rd7 17. Qc6 $132 {[%cal Og5f7][%mdl 2048] White has counterplay} Qb6 {Some like it hot} 18. Qxb6 axb6 19. Ngxe4 Be7 20. Nxd5 {Ng3 would be deadly.} exd5 21. Nc3 (21. Ng5 $11) 21... d4 $15 22. Nb5 Bf6 23. Bf4 Bc2 {This pair of bishops is nice.} 24. Nd6+ Kd8 $1 25. Rd2 d3 26. Nc4 (26. g3 $17) 26... b5 $2 (26... Re8 $1 $19 {[%cal Re8e4] Hoping for ...Re4.} 27. g3 Re6) 27. Ne5 Bxe5 28. Bxe5 f6 29. Bc3 Re8 30. Rc1 Kc7 {[%cal Oc7d6]} 31. Bb4 Kc6 32. Kf1 Rd5 33. f3 h5 34. Re1 (34. Rdd1 $11) 34... Rxe1+ $17 35. Kxe1 {[%mdl 4096] Endgame KRB-KRB} Re5+ 36. Kf2 Kd5 37. Bc3 Re8 (37... Re7 $1 $17) 38. Bb4 (38. h4 $15) 38... Kc4 39. Bc3 Re6 40. f4 Kb3 41. Kf3 Ka2 42. g4 ({White should try} 42. Kg3) 42... hxg4+ 43. Kxg4 Kb1 $1 44. Kf5 (44. Rg2 $17) 44... Rc6 $1 $19 {[%cal Oc6c3]} 45. Bb4 (45. Ke4 {nothing else works.}) 45... Kxb2 46. Kg6 Rc7 (46... Rc4 $19 {[%cal Oc4b4] and Black stays clearly on top. aiming for ...Rxb4!} 47. Kxg7 Rxf4) 47. f5 $17 Kc1 {Strongly threatening ...Rd7.} 48. Rg2 Bd1 49. Bd2+ (49. h4 $17 {might work better.}) 49... Kb1 (49... Kb2 $19 50. Bb4+ Kc1 51. Bd2+ Kb2 52. Bb4+ Be2) 50. h4 Rd7 (50... Be2 $19 {has better winning chances. White must now prevent ...Rc2.} 51. Ba5 Ra7) 51. h5 Bf3 {Black is more active.} (51... Kb2 $5 {[%cal Rb2a3]} 52. h6 gxh6 53. Bb4+ Kc1 54. Bd2+ Kb2 55. Bb4+ Kc1 56. Bd2+ Kb2 $15) 52. Rf2 Be4 53. h6 gxh6 {[%cal Oh6h5]} 54. Bxh6 Rd6 55. Kf7 Rc6 56. Ke7 Bd5 ({Black should play} 56... Rc2 $1 $17 {[%cal Rc2f2]} 57. Rf1+ Kb2) 57. Bf4 $2 (57. Rd2 $1 $11 {and White stays safe.}) 57... Be4 (57... Bb3 $19 58. Rd2 Bc2) 58. Bh6 $1 Ra6 (58... Rc2 $1 $17 {[%cal Rc2f2]} 59. Rf1+ Kb2 60. Kxf6 Rh2) 59. Be3 $11 Bd5 {[%cal Od5b3]} 60. Bd4 (60. Rd2 $1 $11) 60... Kc1 (60... Rxa3 $6 61. Rb2+ Kc1 62. Rxb5 $11) 61. Be3+ Kb1 62. Bd4 {[#]} Be4 (62... Rxa3 $6 63. Rb2+ Kc1 64. Rxb5 $11) (62... Bc4 $1 $17 63. Bc5 Bb3) 63. Rb2+ Kc1 64. Rxb5 (64. Rf2 $1 $11 {keeps the balance.}) 64... d2 $17 (64... Rxa3 65. Bb2+ (65. Kxf6 $2 d2 $19) 65... Kc2 66. Bxa3 $11) 65. Be3 Kc2 (65... Rxa3 66. Rc5+ (66. Bxd2+ Kxd2 67. Kxf6 Bh1 $11) 66... Bc2 67. Bxd2+ Kxd2 68. Kxf6 $11) (65... Bd3 {seems wilder.} 66. Rc5+ Kd1 67. Rd5 Ke2) 66. Bxd2 Kxd2 {KRB-KR} 67. Kf7 $2 {[%mdl 8192]} (67. Rb3 $17) 67... Ke3 $19 ({Weaker is} 67... Rxa3 68. Kxf6 Rh3 69. Kg7 $11) 68. Kg6 Kf4 {[%cal Oe4c6] And now ...Bc6! would win.} (68... Rxa3 69. Kxf6 Kf4 70. Rb6 $15) 69. Rb4 Ke5 ({Inferior is} 69... Rxa3 70. Kxf6 Ra6+ 71. Ke7 $15) 70. Rb5+ {[#]} Bd5 $1 {Black is clearly winning.} 71. Rb8 Bc6 ({And not} 71... Rxa3 72. Re8+ Kf4 73. Kxf6 $15) (71... Ra8 $142 72. Rb4 Rxa3) 72. Rb3 (72. Rc8 $142) 72... Be8+ 73. Kg7 Ra7+ 74. Kf8 {Weighted Error Value: White=0.33/Black=0.37} 0-1

[Event "TUR-ch U13-18 Open 2023"]
[Site "Antalya"]
[Date "2023.01.28"]
[Round "10"]
[White "Ersoz, Teoman Guney"]
[Black "Celik, Ege Yigit"]
[Result "1/2-1/2"]
[ECO "A05"]
[WhiteElo "1691"]
[BlackElo "1891"]
[Annotator "NA RC COMBH"]
[PlyCount "64"]
[EventDate "2023.01.17"]
[EventType "swiss"]
[EventCountry "TUR"]
[SourceTitle "playchess.com"]
[Source "ChessBase"]
[SourceQuality "1"]
[TimeControl "5400+30"]

{[%evp 9,60,3,16,32767,32767,32767,32767,32767,32767,16,32767,32767,32767,32767,29,28,4,-28,-37,-28,9,0,11,11,9,0,14,-6,0,0,32767,-10,32767,32767,32767,32767,32767,6,6,0,0,0,2,0,4,32767,0,0,0,32767,32767,32767,0]} 1. Nf3 {[%emt 0:01:00]} Nf6 {[%emt 0:01:00]} 2. g3 {[%emt 0:00:00]} b6 {[%emt 0:01:30]} 3. Bg2 {[%emt 0:00:00]} Bb7 {[%emt 0:00:30]} 4. b3 {[%emt 0:00:30]} e6 {[%emt 0:00:00]} 5. O-O {[%emt 0:00:30]} Be7 {[%emt 0:00:00]} 6. Bb2 {[%emt 0:00:00]} O-O {[%emt 0:00:30]} 7. c4 {[%emt 0:01:00]} d6 {[%emt 0:00:30]} 8. d4 {[%emt 0:05:30]} c5 {[%emt 0:01:30]} 9. Nbd2 {[%emt 0:03:30]} cxd4 {[%emt 0:01:30]} 10. Nxd4 {[%emt 0:01:30]} Bxg2 {[%emt 0:00:30]} 11. Kxg2 {[%emt 0:00:00]} Qc7 {[%emt 0:04:30]} 12. Rc1 {[%emt 0:20:00]} Qb7+ {[%emt 0:06:30]} 13. N2f3 {[%emt 0:06:30]} a6 {[%emt 0:01:30]} 14. Kg1 {[%emt 0:04:30]} Nc6 {[%emt 0:01:30]} 15. Nxc6 {[%emt 0:00:30]} Qxc6 {[%emt 0:00:00]} 16. Qd3 {[%emt 0:01:30]} Rfd8 {[%emt 0:02:00]} 17. Rfd1 {[%emt 0:03:30]} Rac8 {[%emt 0:02:30]} 18. Ba3 {[%emt 0:12:30]} Qb7 {[%emt 0:05:30]} 19. Nd4 {[%emt 0:03:30]} h6 {[%emt 0:13:30]} 20. Bb4 {[%emt 0:03:30]} Nd7 {[%emt 0:08:30]} 21. Qf3 {[%emt 0:07:30]} Qxf3 {[%emt 0:00:30]} 22. Nxf3 {[%emt 0:00:30]} Nc5 {[%emt 0:00:30]} 23. Kg2 {[%emt 0:00:30]} Bf6 {[%emt 0:01:30]} 24. Bc3 {[%emt 0:02:30]} Bxc3 {[%emt 0:03:30]} 25. Rxc3 {[%emt 0:00:30]} Ne4 {[%emt 0:05:30]} 26. Rcc1 {[%emt 0:02:48]} b5 {[%emt 0:02:30]} 27. Nd2 {[%emt 0:08:47]} Nxd2 {[%emt 0:01:30]} 28. Rxd2 {[%emt 0:00:02]} Kf8 {[%emt 0:04:30]} 29. Rdc2 {[%emt 0:01:13]} b4 {[%emt 0:00:30]} 30. e4 {[%emt 0:01:12]} Rc5 $11 {[%emt 0:00:30]} 31. Rd2 {[%emt 0:01:09]} Ke7 {[%emt 0:00:30]} 32. Rcd1 {[%emt 0:00:00]} a5 {[%emt 0:05:30]} 1/2-1/2

[Event "TUR-ch U13-18 Open 2023"]
[Site "Antalya"]
[Date "2023.01.28"]
[Round "10"]
[White "Binboga, Yaman"]
[Black "Demirtas, Alper"]
[Result "1/2-1/2"]
[ECO "C10"]
[WhiteElo "1641"]
[BlackElo "1990"]
[Annotator "TA"]
[PlyCount "63"]
[EventDate "2023.01.17"]
[EventType "swiss"]
[EventCountry "TUR"]
[SourceTitle "playchess.com"]
[Source "ChessBase"]
[SourceQuality "1"]
[TimeControl "5400+30"]

{[%evp 17,63,43,52,33,35,40,35,23,33,18,67,63,58,17,15,10,175,2,9,3,8,5,10,7,10,10,12,0,0,0,0,0,0,0,0,0,0,0,0,0,0,0,0,0,0,0,0,0]} 1. e4 {[%emt 0:01:00]} e6 {[%emt 0:01:00]} 2. d4 {[%emt 0:00:30]} d5 {[%emt 0:00:00]} 3. Nc3 {[%emt 0:01:30]} dxe4 {[%emt 0:01:00]} 4. Nxe4 {[%emt 0:00:30]} Nd7 {[%emt 0:01:30]} 5. Nf3 {[%emt 0:00:30]} Ngf6 {[%emt 0:00:30]} 6. Bd3 {[%emt 0:01:30]} Be7 {[%emt 0:00:30]} 7. Nxf6+ {[%emt 0:00:00]} Nxf6 {[%emt 0:00:30]} 8. Qe2 {[%emt 0:00:00]} O-O {[%emt 0:08:30]} 9. Bg5 {[%emt 0:00:30]} Nd5 {[%emt 0:06:30]} 10. Bd2 {[%emt 0:00:30] C10: French with 3 Nc3: Unusual Black 3rd moves and 3...dxe4.} ({Don't play} 10. Qe4 f5 11. Qh4 Bxg5 12. Qxg5 (12. Nxg5 h6 $11) 12... Qxg5 13. Nxg5 h6 $11) (10. h4 $5) 10... Qd6 {[%emt 0:08:30] [#]} 11. Ne5 $146 {[%emt 0:02:30]} ({Predecessor:} 11. O-O Nf4 12. Bxf4 Qxf4 13. c3 Bd6 14. Rfe1 c5 15. Rad1 b6 16. g3 Qg4 17. h3 Qh5 {1-0 Oadeoiiia,A-Aiaaeaiia,N corr 1997}) 11... c5 {[%emt 0:08:30]} 12. dxc5 {[%emt 0:07:30] White is slightly better.} Qxc5 {[%emt 0:00:00]} 13. O-O {[%emt 0:09:30]} Bf6 {[%emt 0:11:00]} (13... Nb4 $11) 14. Rfe1 {[%emt 0:10:30] White is more active.} (14. Rad1 $5) 14... g6 {[%emt 0:09:30]} 15. c4 {[%emt 0:03:30]} Nb4 {[%emt 0:02:30]} 16. Bc3 {[%emt 0:01:30][%cal Oe5d7]} Nc6 $2 {[%emt 0:07:30] [#]} (16... Bxe5 $11 17. Bxe5 f6) 17. Rad1 $2 {[%emt 0:09:30]} (17. Nd7 $1 $18 {[%cal Rd7f6]} Bxd7 18. Bxf6) 17... Nxe5 {[%emt 0:07:30] The position is equal.} 18. Bxe5 {[%emt 0:00:30]} Bxe5 {[%emt 0:00:00]} 19. Qxe5 {[%emt 0:00:30]} Qxe5 {[%emt 0:00:00]} 20. Rxe5 {[%emt 0:00:00]} Rd8 {[%emt 0:03:30]} 21. Ree1 {[%emt 0:01:00]} Bd7 {[%emt 0:01:30]} 22. Be4 {[%emt 0:01:30]} Bc6 {[%emt 0:00:30]} 23. Bxc6 {[%emt 0:00:30]} bxc6 $11 {[%emt 0:00:00][%mdl 4096] Endgame KRR-KRR} 24. Kf1 {[%emt 0:00:30]} Kf8 {[%emt 0:00:00]} 25. Ke2 {[%emt 0:00:30]} Ke7 {[%emt 0:01:30]} 26. Rxd8 {[%emt 0:02:30]} Rxd8 {[%emt 0:01:30] KR-KR} 27. Rd1 {[%emt 0:01:30]} Rb8 {[%emt 0:05:05]} 28. Rd2 {[%emt 0:02:30]} g5 {[%emt 0:01:19]} 29. Kd3 {[%emt 0:00:30]} h5 {[%emt 0:01:36]} 30. Kc3 {[%emt 0:00:00]} c5 {[%emt 0:00:28]} 31. Rd3 {[%emt 0:02:00]} a5 {[%emt 0:03:23]} 32. Kc2 {[%emt 0:01:30] Weighted Error Value: White=0.18 (very precise) /Black=0.19 (very precise)} 1/2-1/2

[Event "TUR-ch U13-18 Open 2023"]
[Site "Antalya"]
[Date "2023.01.28"]
[Round "10"]
[White "Ozcan, Alp Orcun"]
[Black "Engin, Onur Cinar"]
[Result "0-1"]
[ECO "B11"]
[WhiteElo "1571"]
[BlackElo "1990"]
[Annotator "TA"]
[PlyCount "52"]
[EventDate "2023.01.17"]
[EventType "swiss"]
[EventCountry "TUR"]
[SourceTitle "playchess.com"]
[Source "ChessBase"]
[SourceQuality "1"]
[TimeControl "5400+30"]

{[%evp 10,52,20,29,33,26,24,27,25,21,27,16,33,-44,-12,-42,-45,-45,-45,-32,-46,-51,-33,-75,-75,-193,-190,-183,-177,-709,-722,-707,-681,-992,-985,-968,-964,-29985,-665,-29986,-29987,-29995,-29996,-29998,-29999]} 1. e4 {[%emt 0:02:00]} c6 {[%emt 0:01:00]} 2. Nf3 {[%emt 0:00:30]} d5 {[%emt 0:00:30]} 3. Nc3 {[%emt 0:00:30]} dxe4 {[%emt 0:00:00]} 4. Nxe4 {[%emt 0:00:30]} Nf6 {[%emt 0:00:00]} 5. Qe2 {[%emt 0:00:30]} Nxe4 {[%emt 0:00:30]} 6. Qxe4 {[%emt 0:00:30]} Nd7 {[%emt 0:00:00] B11: Caro-Kann: Two Knights Variation.} 7. Bc4 {[%emt 0:00:00] Ng5 would be deadly.} Nf6 {[%emt 0:00:00] [#]} 8. Ne5 $1 {[%emt 0:00:00][%csl Ge5][%cal Rc4f7]} e6 {[%emt 0:00:30] White has an edge.} 9. Qe2 {[%emt 0:00:00]} b5 {[%emt 0:01:30]} 10. Bd3 {[%emt 0:08:00]} ({Much weaker is} 10. Nxc6 Qc7 11. Bd3 (11. Bxb5 a6 $17) 11... a6 $11) 10... Qc7 {[%emt 0:06:30] [#]} 11. Nxc6 {[%emt 0:08:30]} Bb7 $15 {[%emt 0:00:30]} (11... Qxc6 $2 12. Bxb5 $18) 12. Ne5 {[%emt 0:01:30]} a6 {[%emt 0:00:30][%mdl 1024] Black has compensation.} 13. f4 {[%emt 0:08:30] [#]} Bc5 $146 {[%emt 0:08:30]} ({Predecessor:} 13... Bd6 14. O-O Nd5 15. Be4 Bxe5 16. fxe5 Qxe5 17. Rf2 Qc7 18. d4 O-O-O 19. c3 f6 {1-0 Alvarez Barrallo,R (1183)-Uber Gracia,H (1952) ESP-ch U12 Salobrena 2022 (7)}) 14. Rf1 {[%emt 0:05:30]} O-O {[%emt 0:25:30][%cal Bh8f8,Bf8d8,Bd8d2,Bd2g2,Bg2h2][%mdl 32]} 15. c3 {[%emt 0:02:30]} Rfd8 {[%emt 0:02:30]} 16. Bc2 {[%emt 0:02:30]} b4 {[%emt 0:02:30] Black is more active.} 17. d4 {[%emt 0:01:30] [#]} (17. g4 $17) 17... bxc3 $1 $19 {[%emt 0:03:30]} 18. dxc5 {[%emt 0:17:30] [#]} cxb2 {[%emt 0:00:30]} 19. Bxb2 {[%emt 0:00:30]} (19. Bxh7+ Nxh7 20. Qxb2) 19... Qa5+ {[%emt 0:00:30]} 20. Kf2 {[%emt 0:00:30]} Rd2 {[%emt 0:00:30]} (20... Qxc5+ $2 21. Kg3 $18) 21. Rfe1 {[%emt 0:07:30]} Qxc5+ {[%emt 0:00:30]} 22. Kf1 {[%emt 0:00:00]} Qxc2 {[%emt 0:05:30]} 23. Qe3 {[%emt 0:02:00] White is weak on the light squares} Bxg2+ {[%emt 0:04:30]} 24. Kg1 {[%emt 0:00:30]} Bd5 {[%emt 0:00:30] Black mates.} (24... Qxb2 25. Nc4 Nd5 26. Qxd2 Qxd2 27. Nxd2 Nxf4 28. Rac1 $17) 25. Nf3 {[%emt 0:03:30]} Rg2+ {[%emt 0:00:30]} ({Stronger than} 25... Qxb2 26. Qxd2 Qa3 27. Ne5 $17) 26. Kh1 {[%emt 0:00:30]} Rxh2+ {[%emt 0:00:30] Black took control after the opening. Excellently played by Engin!   Weighted Error Value: White=0.93/Black=0.01 (flawless)} 0-1

[Event "TUR-ch U13-18 Open 2023"]
[Site "Antalya"]
[Date "2023.01.28"]
[Round "10"]
[White "Tezcan, Alper"]
[Black "Gupluce, Melih"]
[Result "1/2-1/2"]
[ECO "B11"]
[WhiteElo "1568"]
[BlackElo "1309"]
[Annotator "NA RC COMBH"]
[PlyCount "80"]
[EventDate "2023.01.17"]
[EventType "swiss"]
[EventCountry "TUR"]
[SourceTitle "playchess.com"]
[Source "ChessBase"]
[SourceQuality "1"]
[TimeControl "5400+30"]

1. e4 {[%emt 0:02:00]} c6 {[%emt 0:01:00]} 2. Nc3 {[%emt 0:00:30]} d5 {[%emt 0:00:00]} 3. Nf3 {[%emt 0:00:30]} Bg4 {[%emt 0:00:00]} 4. Be2 {[%emt 0:00:30]} Nf6 {[%emt 0:00:30]} 5. exd5 {[%emt 0:01:30]} cxd5 {[%emt 0:00:30]} 6. h3 {[%emt 0:01:30]} Bxf3 {[%emt 0:02:30]} 7. Bxf3 {[%emt 0:00:00]} Nc6 {[%emt 0:00:00]} 8. d4 {[%emt 0:01:00]} e6 {[%emt 0:03:00]} 9. O-O {[%emt 0:00:30]} Bd6 {[%emt 0:01:30]} 10. Re1 {[%emt 0:01:30]} O-O {[%emt 0:00:30]} 11. a3 {[%emt 0:10:30]} Qb6 {[%emt 0:12:30]} 12. Ne2 {[%emt 0:01:30]} Rad8 {[%emt 0:01:30]} 13. c3 {[%emt 0:07:30]} e5 {[%emt 0:02:30]} 14. dxe5 {[%emt 0:03:30]} Bxe5 {[%emt 0:01:30]} 15. Qa4 {[%emt 0:06:30]} d4 {[%emt 0:17:30]} 16. Bxc6 {[%emt 0:01:30]} dxc3 {[%emt 0:07:30]} 17. Nxc3 {[%emt 0:03:30]} Bxc3 {[%emt 0:00:30]} 18. bxc3 {[%emt 0:00:30]} Qxc6 {[%emt 0:00:30]} 19. Qxc6 {[%emt 0:00:30]} bxc6 {[%emt 0:00:00]} 20. Be3 {[%emt 0:00:00]} a6 {[%emt 0:03:00]} 21. c4 {[%emt 0:02:00]} Rfe8 {[%emt 0:02:30]} 22. Rab1 {[%emt 0:04:30]} Rb8 {[%emt 0:00:30]} 23. Rxb8 {[%emt 0:07:30]} Rxb8 {[%emt 0:00:30]} 24. Bf4 {[%emt 0:02:30]} Rb3 {[%emt 0:00:30]} 25. Rd1 {[%emt 0:02:30]} h6 {[%emt 0:00:30]} 26. Rd6 {[%emt 0:00:30]} Ne4 {[%emt 0:01:30]} 27. Rxc6 {[%emt 0:00:30]} Rxa3 {[%emt 0:00:00]} 28. f3 {[%emt 0:00:30]} Nc3 {[%emt 0:00:00]} 29. Rc8+ {[%emt 0:03:30]} Kh7 {[%emt 0:00:00]} 30. Kh2 {[%emt 0:00:30]} a5 {[%emt 0:00:00]} 31. c5 {[%emt 0:01:30]} Ra4 {[%emt 0:00:30]} 32. Bg3 {[%emt 0:07:30]} Rc4 {[%emt 0:00:30]} 33. c6 {[%emt 0:01:30]} Ne2 {[%emt 0:00:00]} 34. Bd6 {[%emt 0:03:30]} Nd4 {[%emt 0:02:00]} 35. c7 {[%emt 0:00:30]} Ne6 {[%emt 0:00:30]} 36. Bg3 {[%emt 0:04:46]} Rc5 {[%emt 0:00:00]} 37. Bd6 {[%emt 0:03:05]} Rc3 {[%emt 0:00:00]} 38. Rb8 {[%emt 0:03:42]} Nxc7 {[%emt 0:00:30]} 39. Rc8 {[%emt 0:00:30]} a4 {[%emt 0:00:30]} 40. Bxc7 {[%emt 0:00:30]} a3 {[%emt 0:00:30]} 1/2-1/2

[Event "TUR-ch U13-18 Open 2023"]
[Site "Antalya"]
[Date "2023.01.28"]
[Round "10"]
[White "Harmansa, Kagan"]
[Black "Yamakoglu, Mustafa Ege"]
[Result "0-1"]
[ECO "B72"]
[WhiteElo "1519"]
[BlackElo "1372"]
[Annotator "NA RC COMBH"]
[PlyCount "50"]
[EventDate "2023.01.17"]
[EventType "swiss"]
[EventCountry "TUR"]
[SourceTitle "playchess.com"]
[Source "ChessBase"]
[SourceQuality "1"]
[TimeControl "5400+30"]

1. e4 {[%emt 0:01:00]} c5 {[%emt 0:02:00]} 2. Nf3 {[%emt 0:00:30]} d6 {[%emt 0:01:30]} 3. d4 {[%emt 0:00:30]} cxd4 {[%emt 0:02:30]} 4. Nxd4 {[%emt 0:00:00]} Nf6 {[%emt 0:01:30]} 5. Nc3 {[%emt 0:00:00]} g6 {[%emt 0:01:30]} 6. Be3 {[%emt 0:01:30]} Bg7 {[%emt 0:01:30]} 7. Bc4 {[%emt 0:03:30]} a6 {[%emt 0:05:30]} 8. Bb3 {[%emt 0:01:30]} Nbd7 {[%emt 0:05:30]} 9. f3 {[%emt 0:10:30]} Qc7 {[%emt 0:07:30]} 10. Qd2 {[%emt 0:03:30]} h5 {[%emt 0:08:30]} 11. O-O-O {[%emt 0:15:30]} b5 {[%emt 0:11:30]} 12. Nde2 {[%emt 0:12:30]} Nb6 {[%emt 0:08:30]} 13. e5 {[%emt 0:15:30]} dxe5 {[%emt 0:15:30]} 14. Bxb6 {[%emt 0:01:30]} Qxb6 {[%emt 0:00:30]} 15. Nd5 {[%emt 0:00:00]} Nxd5 {[%emt 0:01:30]} 16. Qxd5 {[%emt 0:01:00]} O-O {[%emt 0:01:30]} 17. Qxa8 {[%emt 0:05:30]} Bb7 {[%emt 0:00:30]} 18. Qxf8+ {[%emt 0:00:30]} Bxf8 {[%emt 0:00:30]} 19. Nc3 {[%emt 0:07:22]} e6 {[%emt 0:02:53]} 20. Rhe1 {[%emt 0:01:56]} b4 {[%emt 0:02:25]} 21. Ne4 {[%emt 0:07:21]} Bxe4 {[%emt 0:00:15]} 22. fxe4 {[%emt 0:01:51]} Qf2 {[%emt 0:00:48]} 23. Rf1 {[%emt 0:02:33]} Qxg2 {[%emt 0:00:11]} 24. Kb1 {[%emt 0:00:25]} h4 {[%emt 0:01:28]} 25. Rf6 {[%emt 0:02:42]} Be7 {[%emt 0:00:19]} 0-1

[Event "TUR-ch U13-18 Open 2023"]
[Site "Antalya"]
[Date "2023.01.28"]
[Round "10"]
[White "Akkaya, Atakan"]
[Black "Turkmen, Yusuf Cagan"]
[Result "0-1"]
[ECO "B45"]
[WhiteElo "1506"]
[BlackElo "1943"]
[Annotator "TA"]
[PlyCount "62"]
[EventDate "2023.01.17"]
[EventType "swiss"]
[EventCountry "TUR"]
[SourceTitle "playchess.com"]
[Source "ChessBase"]
[SourceQuality "1"]
[TimeControl "5400+30"]

{[%evp 16,62,16,7,64,77,65,0,93,-61,-41,-79,-72,-81,-81,-104,-112,-131,-120,-194,-93,-173,-157,-305,-126,-386,-135,-214,-237,-436,-416,-607,-604,-587,-552,-658,-616,-1093,-1083,-1089,-1070,-29991,-29985,-29993,-29992,-29992,-29993,-29994,-29995]} 1. e4 {[%emt 0:01:00]} c5 {[%emt 0:01:00]} 2. Nf3 {[%emt 0:00:30]} e6 {[%emt 0:00:30]} 3. d4 {[%emt 0:00:30]} cxd4 {[%emt 0:00:30]} 4. Nxd4 {[%emt 0:00:30]} Nf6 {[%emt 0:00:00]} 5. Nc3 {[%emt 0:03:30]} Nc6 {[%emt 0:01:00]} 6. Nxc6 {[%emt 0:01:30]} bxc6 {[%emt 0:00:30]} 7. e5 {[%emt 0:00:30]} Nd5 {[%emt 0:00:30]} 8. Ne4 {[%emt 0:00:30]} Qc7 {[%emt 0:00:00]} 9. f4 {[%emt 0:02:30]} Rb8 {[%emt 0:00:00] B45: Sicilian Four Knights.} (9... Qb6 $11) 10. c4 $14 {[%emt 0:10:30]} Bb4+ {[%emt 0:00:00]} 11. Kf2 {[%emt 0:04:30]} ({White should play} 11. Ke2 $14) 11... O-O {[%emt 0:00:00] [#]} 12. Bd3 $146 {[%emt 0:18:30] [#]} (12. a3 $16 Be7 13. cxd5 cxd5 14. Nc3) ({Predecessor:} 12. cxd5 cxd5 13. a3 Be7 14. Nc3 f6 15. exf6 Rxf6 16. Qd3 Rxf4+ 17. Ke1 Rf5 18. Be2 {1-0 Liang,A (2587)-Yoo,C (2466) Kramnik Challenge rapid 2021 (7)}) 12... f6 $1 {[%emt 0:13:30][%cal Od5f4]} 13. cxd5 {[%emt 0:06:30]} (13. a3 Nxf4) 13... cxd5 {[%emt 0:03:30]} 14. Nxf6+ {[%emt 0:14:30][%mdl 64] Discovered Attack} gxf6 {[%emt 0:00:30]} 15. Qg4+ {[%emt 0:11:30]} Kh8 {[%emt 0:02:30]} 16. exf6 {[%emt 0:00:30][%csl Gf6][%cal Rg4g7]} (16. Be3 $2 d4 17. Bc1 (17. Bxd4 $2 Bc5 $19) 17... fxe5 $19) 16... Bc5+ {[%emt 0:01:30]} 17. Ke2 {[%emt 0:04:22] [#]} (17. Kf1 $17 {keeps fighting.} d6 18. Qg5) 17... Rxf6 {[%emt 0:11:30]} (17... d6 $1 $19 {And now ...Rg8 would win.} 18. Qh4 e5 19. fxe5 Rb4) 18. Qh5 {[%emt 0:01:38] [#]} (18. Rf1 $17) 18... d6 $1 $19 {[%emt 0:03:30] White must now prevent ...Qg7.} (18... h6 19. b3 d6 20. Bb2 $17) 19. g4 {[%emt 0:00:15]} (19. Qe8+ $17 Kg7 20. Qh5) 19... Qf7 {[%emt 0:11:30]} (19... e5 $19 20. fxe5 (20. Qe8+ $2 Kg7 $19) 20... dxe5) 20. Qh4 $2 {[%emt 0:00:30][%mdl 8192] This costs White the game.} (20. Qxf7 $17 Rxf7 21. Kd1) 20... Bd4 $2 {[%emt 0:10:30]} (20... e5 $19 {has better winning chances.} 21. Ke1 e4) 21. g5 {[%emt 0:03:33] [#]} (21. Rd1 $17) 21... Rf5 $1 {[%emt 0:02:30][%cal Oe6e5][%mdl 512]} 22. Bd2 $2 {[%emt 0:01:44]} (22. Qh6) (22. Re1 Bd7) 22... e5 {[%emt 0:07:30][%cal Be6e5,Be5e4,Be4d3][%mdl 32] Hoping for ...e4.} ({Weaker is} 22... Rxb2 23. Rac1 Bd7 24. Rc7 $17) 23. Rhg1 {[%emt 0:11:06]} (23. Kd1 $142 e4 24. g6 Qxg6 25. Qd8+ Qg8 26. Qxg8+ Kxg8 27. Bc2) 23... e4 {[%emt 0:09:43]} 24. g6 {[%emt 0:01:40]} exd3+ {[%emt 0:00:30]} 25. Kf3 {[%emt 0:00:00]} Qg7 {[%emt 0:05:57]} 26. Bc3 {[%emt 0:00:33]} Bxc3 {[%emt 0:06:42]} 27. gxh7 {[%emt 0:00:16]} Bf6 {[%emt 0:00:56]} 28. Qe1 {[%emt 0:00:51]} Qf7 {[%emt 0:01:34] Black mates.} ({Much less strong is} 28... Qxh7 29. Qe8+) 29. Rc1 {[%emt 0:00:11]} Qh5+ {[%emt 0:01:21]} ({Don't play} 29... Qxh7 30. Qe8+) 30. Ke3 {[%emt 0:00:29]} d4+ {[%emt 0:01:00]} 31. Kd2 {[%emt 0:00:30]} Rxb2+ {[%emt 0:00:00] Magnificent play by Turkmen!   Weighted Error Value: White=1.19/Black=0.34} 0-1